bitfinex/quotes_BTCUSD_20220226
["timestamp","ask_amount","ask_price","bid_price","bid_amount"]
[1645879297401,0.00029871,38945.0,38941.0,0.01806552]
[1645879298404,0.15905491,38948.0,38941.0,0.18350167]
[1645879298602,0.00029871,38945.0,38941.0,0.18343263]
[1645879299606,0.15905491,38948.0,38941.0,0.18343263]
[1645879299804,0.00029871,38945.0,38941.0,0.18343263]
[1645879300407,0.00029871,38945.0,38941.0,0.01799648]
[1645879300857,0.1,38947.0,38941.0,0.01799648]
[1645879301053,0.00029871,38945.0,38941.0,0.01799648]
[1645879301254,0.15905491,38948.0,38947.0,0.30089612]
[1645879301459,0.24935362,38948.0,38947.0,0.30089612]
[1645879302055,0.15905491,38948.0,38947.0,0.30089612]
[1645879302455,0.24935362,38948.0,38947.0,0.30089612]
[1645879303058,0.24935362,38948.0,38947.0,0.30189612]
[1645879303655,0.24935362,38948.0,38947.0,0.30144592]
[1645879304257,0.24935362,38948.0,38947.0,0.30044592]
[1645879304702,0.15905491,38948.0,38947.0,0.30044592]
[1645879305102,0.16005491,38948.0,38947.0,0.30044592]
[1645879306904,0.15905491,38948.0,38947.0,0.30044592]
[1645879307105,0.16105491,38948.0,38947.0,0.30044592]
[1645879308111,0.30275362,38948.0,38947.0,0.30044592]
[1645879308355,0.30075362,38948.0,38947.0,0.30044592]
[1645879308955,0.30275362,38948.0,38947.0,0.30044592]
[1645879309155,0.21245491,38948.0,38947.0,0.30044592]
[1645879309357,0.30275362,38948.0,38947.0,0.30044592]
[1645879310762,0.30275362,38948.0,38947.0,0.30686383]
[1645879311360,0.21245491,38948.0,38947.0,0.30686383]
[1645879312199,0.21045491,38948.0,38947.0,0.30686383]
[1645879312999,0.21245491,38948.0,38947.0,0.30686383]
[1645879314408,0.21045491,38948.0,38947.0,0.30686383]
[1645879317254,0.30075362,38948.0,38947.0,0.30686383]
[1645879318955,0.30175362,38948.0,38947.0,0.30686383]
[1645879319355,0.29596507,38948.0,38947.0,0.30686383]
[1645879320403,0.29496507,38948.0,38947.0,0.30686383]
[1645879321003,0.29596507,38948.0,38947.0,0.30686383]
[1645879322305,0.29496507,38948.0,38947.0,0.30686383]
[1645879324357,0.59496507,38948.0,38947.0,0.30686383]
[1645879324759,0.29496507,38948.0,38947.0,0.30686383]
[1645879327015,0.29496507,38948.0,38947.0,0.07897049]
[1645879327016,2.59803707,38948.0,38947.0,0.07897049]
[1645879327219,2.67511066,38948.0,38947.0,0.01677555]
[1645879327414,2.63537066,38948.0,38947.0,0.01677555]
[1645879327610,3.06855378,38948.0,38947.0,0.01677555]
[1645879327810,3.27767148,38948.0,38947.0,0.01677555]
[1645879328311,0.15,38943.0,38941.0,0.01799648]
[1645879328512,0.8465443,38942.0,38941.0,0.01799648]
[1645879328913,0.4687723,38942.0,38941.0,0.01799648]
[1645879329114,0.8465443,38942.0,38941.0,0.01799648]
[1645879329611,0.8465443,38942.0,38941.0,0.01756208]
[1645879330011,0.4687723,38942.0,38941.0,0.01756208]
[1645879330212,1.02238133,38942.0,38941.0,0.01307562]
[1645879331663,1.37412643,38942.0,38941.0,0.01307562]
[1645879331863,1.37412643,38942.0,38938.0,0.00029785]
[1645879331864,0.577772,38940.0,38938.0,0.00029785]
[1645879332062,2.27182689,38939.0,38931.0,0.05]
[1645879332261,2.27182689,38939.0,38923.0,0.00096223]
[1645879332262,1.11057071,38932.0,38923.0,0.00096223]
[1645879332462,0.09029871,38930.0,38923.0,0.00096223]
[1645879332661,0.3514,38929.0,38921.0,0.2692]
[1645879332961,0.17004797,38923.0,38921.0,0.2192]
[1645879333162,0.54993915,38928.0,38927.0,0.34009594]
[1645879333362,0.22356715,38928.0,38927.0,0.34009594]
[1645879334266,0.52356715,38928.0,38927.0,0.34009594]
[1645879334707,0.52356715,38928.0,38927.0,0.33960137]
[1645879335106,0.52456715,38928.0,38927.0,0.33960137]
[1645879336308,0.52356715,38928.0,38927.0,0.33960137]
[1645879337110,0.99163786,38928.0,38927.0,0.33960137]
[1645879337509,1.77443786,38928.0,38927.0,0.33960137]
[1645879338108,1.77401994,38928.0,38927.0,0.33960137]
[1645879338564,0.99121994,38928.0,38927.0,0.33960137]
[1645879342008,0.90092123,38928.0,38927.0,0.33960137]
[1645879342610,0.01026,38931.0,38927.0,0.33960137]
[1645879342810,0.1998,38932.0,38927.0,0.33960137]
[1645879342811,0.18615393,38932.0,38927.0,0.33960137]
[1645879343708,0.18615393,38932.0,38927.0,0.33915207]
[1645879344211,0.18615393,38932.0,38928.0,0.00029702]
[1645879345207,0.18615393,38932.0,38927.0,0.48890267]
[1645879346855,0.18615393,38932.0,38927.0,0.33915207]
[1645879347559,0.48615393,38932.0,38927.0,0.33915207]
[1645879347957,0.3,38932.0,38928.0,0.00029676]
[1645879348156,0.377772,38931.0,38928.0,0.00029676]
[1645879348355,0.377772,38929.0,38928.0,0.00029676]
[1645879348956,0.377772,38929.0,38927.0,0.33915207]
[1645879349155,0.377772,38929.0,38927.0,0.33944883]
[1645879350002,0.377772,38929.0,38927.0,0.33915207]
[1645879350603,0.3,38932.0,38927.0,0.33915207]
[1645879350903,0.377772,38931.0,38927.0,0.33915207]
[1645879351202,0.427772,38931.0,38927.0,0.33915207]
[1645879351603,0.427772,38931.0,38927.0,0.33944883]
[1645879352205,0.377772,38929.0,38927.0,0.33944883]
[1645879352405,0.377772,38928.0,38927.0,0.33944883]
[1645879352605,0.377772,38928.0,38927.0,0.33915207]
[1645879353249,0.378772,38928.0,38927.0,0.33915207]
[1645879354454,0.377772,38928.0,38927.0,0.33915207]
[1645879354654,0.05,38931.0,38927.0,0.33915207]
[1645879355051,0.1514,38932.0,38927.0,0.33915207]
[1645879355855,0.0514,38932.0,38927.0,0.33915207]
[1645879356062,0.13236,38937.0,38927.0,0.33915207]
[1645879356259,0.13236,38937.0,38928.0,0.00025152]
[1645879356260,0.1221,38937.0,38928.0,0.00025152]
[1645879356455,0.1889,38938.0,38928.0,0.00025152]
[1645879356856,0.14258676,38938.0,38930.0,0.12890039]
[1645879357511,0.14258676,38938.0,38932.0,0.00025608]
[1645879357908,0.3,38937.0,38930.0,0.12485647]
[1645879358215,0.14258676,38938.0,38930.0,0.12485647]
[1645879359008,2.67903945,38940.0,38930.0,0.12485647]
[1645879359211,0.001,38936.0,38931.0,0.00970129]
[1645879359412,0.001,38936.0,38930.0,0.12485647]
[1645879359608,0.001,38936.0,38931.0,0.1191]
[1645879359809,0.001,38936.0,38934.0,0.00970129]
[1645879360770,0.3,38946.0,38934.0,0.00970129]
[1645879360969,0.01026,38948.0,38932.0,0.02567]
[1645879361165,0.00029668,38942.0,38932.0,0.02567]
[1645879361564,0.00029668,38942.0,38937.0,0.18849453]
[1645879362064,0.15500483,38945.0,38937.0,0.18849453]
[1645879362466,0.0002967,38942.0,38936.0,0.00970129]
[1645879362668,0.0002967,38942.0,38935.0,0.00970129]
[1645879363273,0.15500483,38945.0,38935.0,0.00970129]
[1645879363670,0.00029669,38942.0,38935.0,0.00970129]
[1645879364505,0.15500483,38945.0,38935.0,0.00970129]
[1645879364705,0.00029669,38942.0,38935.0,0.00970129]
[1645879364906,0.12627892,38939.0,38931.0,0.1191]
[1645879365106,0.12627892,38939.0,38931.0,0.12880129]
[1645879365915,0.3,38938.0,38931.0,0.12880129]
[1645879366109,0.96000001,38935.0,38931.0,0.00970129]
[1645879367112,0.3,38934.0,38931.0,0.00970129]
[1645879367509,0.96000001,38935.0,38931.0,0.00970129]
[1645879369559,0.96100001,38935.0,38931.0,0.00970129]
[1645879370759,0.96000001,38935.0,38931.0,0.00970129]
[1645879372410,0.14135358,38933.0,38931.0,0.00970129]
[1645879373305,0.96000001,38935.0,38931.0,0.00970129]
[1645879375509,0.96100001,38935.0,38931.0,0.00970129]
[1645879375754,0.95876278,38935.0,38931.0,0.00970129]
[1645879376257,0.95446278,38935.0,38931.0,0.00970129]
[1645879376858,0.95346278,38935.0,38931.0,0.00970129]
[1645879377556,0.95446278,38935.0,38931.0,0.00970129]
[1645879379358,0.95346278,38935.0,38931.0,0.00970129]
[1645879382806,0.95243021,38935.0,38931.0,0.00970129]
[1645879383963,0.95243021,38935.0,38934.0,0.00970129]
[1645879384158,0.37347468,38935.0,38934.0,0.00970129]
[1645879384756,0.37347468,38935.0,38934.0,0.1737512]
[1645879385560,0.37347468,38935.0,38934.0,0.1994212]
[1645879387616,0.37447468,38935.0,38934.0,0.1994212]
[1645879388919,0.37347468,38935.0,38934.0,0.1994212]
[1645879391059,0.37347468,38935.0,38934.0,0.4994212]
[1645879391663,0.37347468,38935.0,38934.0,0.5014212]
[1645879392559,0.37347468,38935.0,38934.0,0.5528212]
[1645879392960,0.37347468,38935.0,38934.0,0.5508212]
[1645879393559,0.37347468,38935.0,38934.0,0.5538212]
[1645879394709,0.37347468,38935.0,38934.0,0.5508212]
[1645879395513,0.37347468,38935.0,38934.0,0.5538212]
[1645879396315,0.37347468,38935.0,38934.0,0.6538212]
[1645879396819,0.37347468,38935.0,38934.0,0.6508212]
[1645879397814,0.37305901,38935.0,38934.0,0.6508212]
[1645879398270,0.37264128,38935.0,38934.0,0.6508212]
[1645879398671,0.37264128,38935.0,38934.0,0.6251512]
[1645879398872,0.37264128,38935.0,38934.0,0.5251512]
[1645879399071,0.37264128,38935.0,38934.0,0.2251512]
[1645879401072,0.37264128,38935.0,38934.0,0.5508212]
[1645879401472,0.37264128,38935.0,38934.0,0.6508212]
[1645879402011,0.37264128,38935.0,38934.0,0.5508212]
[1645879402908,0.37264128,38935.0,38934.0,0.6508212]
[1645879404109,0.37264128,38935.0,38934.0,0.5508212]
[1645879404311,0.37264128,38935.0,38934.0,0.3508212]
[1645879404514,0.37264128,38935.0,38934.0,0.6508212]
[1645879404712,0.37264128,38935.0,38934.0,0.6251512]
[1645879406158,0.36764128,38935.0,38934.0,0.6251512]
[1645879406359,0.00029679,38942.0,38935.0,1.15]
[1645879406662,0.1182,38950.0,38940.0,0.12925356]
[1645879406859,0.1182,38950.0,38941.0,0.3]
[1645879406860,0.00029679,38942.0,38941.0,0.3]
[1645879407063,0.00029679,38942.0,38940.0,0.12925356]
[1645879407660,0.48329096,38952.0,38939.0,0.3]
[1645879407861,0.15865406,38952.0,38939.0,0.3]
[1645879408061,0.00029681,38943.0,38939.0,0.3]
[1645879408261,0.00029681,38943.0,38942.0,0.00970129]
[1645879408661,0.00029681,38943.0,38942.0,0.00930812]
[1645879408862,0.15865406,38952.0,38942.0,0.00930812]
[1645879409064,0.15865406,38952.0,38947.0,0.00930812]
[1645879409263,0.00118703,38950.0,38947.0,0.00930812]
[1645879410109,0.15865406,38952.0,38947.0,0.00930812]
[1645879410308,0.00129678,38950.0,38947.0,0.00930812]
[1645879411110,0.00029678,38950.0,38947.0,0.00930812]
[1645879411312,0.15865406,38952.0,38947.0,0.00930812]
[1645879411512,0.00029678,38950.0,38947.0,0.00930812]
[1645879411911,0.00029678,38950.0,38945.0,0.00930812]
[1645879412315,0.00029678,38950.0,38942.0,0.001]
[1645879412513,0.15965406,38952.0,38942.0,0.001]
[1645879412712,0.00027341,38949.0,38942.0,0.001]
[1645879412912,0.00027341,38949.0,38947.0,0.00930812]
[1645879413365,0.00027341,38949.0,38947.0,0.06070812]
[1645879413564,0.00027341,38949.0,38948.0,0.3]
[1645879413762,0.12606,38958.0,38948.0,0.3]
[1645879413763,0.1158,38958.0,38948.0,0.3514]
[1645879413965,0.00014974,38950.0,38948.0,0.3514]
[1645879414162,0.00059888,38956.0,38952.0,0.00029948]
[1645879414362,0.00059888,38956.0,38955.0,0.00930812]
[1645879414967,0.13487991,38958.0,38955.0,0.00930812]
[1645879417616,0.13505198,38958.0,38955.0,0.00930812]
[1645879418113,0.13505198,38958.0,38954.0,0.00930812]
[1645879418315,0.13505198,38958.0,38952.0,0.00029948]
[1645879418513,0.13487991,38958.0,38957.0,0.00930812]
[1645879418716,0.13517798,38958.0,38957.0,0.00930812]
[1645879419714,0.13487991,38958.0,38956.0,0.00930812]
[1645879419916,0.13587991,38958.0,38956.0,0.00930812]
[1645879420760,0.13587991,38958.0,38952.0,0.00229948]
[1645879420961,0.13587991,38958.0,38956.0,0.00930812]
[1645879421160,0.13487991,38958.0,38952.0,0.00029948]
[1645879421363,0.13487991,38958.0,38954.0,0.00930812]
[1645879421964,0.13487991,38958.0,38954.0,0.01130812]
[1645879422167,0.13487991,38958.0,38954.0,0.002]
[1645879422365,0.13517798,38958.0,38956.0,0.00930812]
[1645879423264,0.13487991,38958.0,38956.0,0.00930812]
[1645879423865,0.13487991,38958.0,38957.0,0.00930812]
[1645879424711,0.3246369,38962.0,38957.0,0.00930812]
[1645879424909,0.00029807,38959.0,38957.0,0.00930812]
[1645879425809,0.17396607,38960.0,38957.0,0.00930812]
[1645879426008,0.17426414,38960.0,38957.0,0.01030812]
[1645879426609,0.17426414,38960.0,38957.0,0.001]
[1645879427013,0.17396607,38960.0,38957.0,0.001]
[1645879427211,0.17426414,38960.0,38956.0,0.00930812]
[1645879427411,0.17426414,38960.0,38954.0,0.00930812]
[1645879427610,0.17426414,38960.0,38948.0,0.05]
[1645879428011,0.17626414,38960.0,38954.0,0.00930812]
[1645879428257,0.17596607,38960.0,38954.0,0.00930812]
[1645879428458,0.00027617,38956.0,38954.0,0.00930812]
[1645879429457,0.17396607,38960.0,38954.0,0.00930812]
[1645879429658,0.00027616,38957.0,38956.0,0.00930812]
[1645879430658,0.49860297,38960.0,38956.0,0.00930812]
[1645879431059,0.17396607,38960.0,38956.0,0.00930812]
[1645879431659,0.17396607,38960.0,38958.0,0.00930812]
[1645879433915,0.17396607,38960.0,38958.0,0.01130812]
[1645879435316,0.17396607,38960.0,38958.0,0.00930812]
[1645879435958,0.17396607,38960.0,38958.0,0.01130812]
[1645879437159,0.17396607,38960.0,38948.0,0.11420394]
[1645879437361,0.3,38959.0,38955.0,0.00930812]
[1645879437561,0.17396607,38960.0,38955.0,0.00930812]
[1645879437963,0.17426413,38960.0,38955.0,0.003]
[1645879438161,0.17426413,38960.0,38957.0,0.00930812]
[1645879438963,0.17396607,38960.0,38957.0,0.00930812]
[1645879439163,0.17426414,38960.0,38957.0,0.00930812]
[1645879440006,0.17426414,38960.0,38957.0,0.01230812]
[1645879440205,0.17396607,38960.0,38957.0,0.01230812]
[1645879440406,0.17426414,38960.0,38957.0,0.01230812]
[1645879440908,0.17426414,38960.0,38957.0,0.003]
[1645879441105,0.17426414,38960.0,38957.0,0.01230812]
[1645879441310,0.17396607,38960.0,38957.0,0.00930812]
[1645879441706,0.17426414,38960.0,38957.0,0.00930812]
[1645879442107,0.17626414,38960.0,38957.0,0.00930812]
[1645879442510,0.17596607,38960.0,38957.0,0.00930812]
[1645879442910,0.16626414,38960.0,38957.0,0.00930812]
[1645879443360,0.16426414,38960.0,38946.0,0.37516385]
[1645879443565,0.16426414,38960.0,38946.0,0.47516385]
[1645879443764,0.16396607,38960.0,38954.0,0.00930812]
[1645879443961,0.02567,38959.0,38947.0,0.29503351]
[1645879444160,0.16426412,38960.0,38957.0,0.00930812]
[1645879444760,0.16426412,38960.0,38956.0,0.00930812]
[1645879444960,0.16396607,38960.0,38956.0,0.00930812]
[1645879445362,0.16426414,38960.0,38956.0,0.00930812]
[1645879445960,0.16426414,38960.0,38956.0,0.01030812]
[1645879446165,0.16396607,38960.0,38956.0,0.01030812]
[1645879446361,0.16426414,38960.0,38956.0,0.01030812]
[1645879446861,0.16426414,38960.0,38956.0,0.001]
[1645879447310,0.16396607,38960.0,38953.0,0.00930812]
[1645879447709,0.16426414,38960.0,38953.0,0.00930812]
[1645879448111,0.16426414,38960.0,38953.0,0.01030812]
[1645879448510,0.16396607,38960.0,38953.0,0.01030812]
[1645879448715,0.16426413,38960.0,38953.0,0.01030812]
[1645879449314,0.16426413,38960.0,38953.0,0.00930812]
[1645879449814,0.16396607,38960.0,38953.0,0.00930812]
[1645879450013,0.46426413,38960.0,38953.0,0.01030812]
[1645879450217,0.37862119,38959.0,38953.0,0.001]
[1645879450414,0.37862119,38959.0,38953.0,0.01030812]
[1645879451372,0.37862119,38958.0,38953.0,0.00930812]
[1645879451966,0.37862119,38959.0,38953.0,0.00930812]
[1645879452167,0.37862119,38958.0,38953.0,0.00930812]
[1645879454067,0.37862119,38958.0,38953.0,0.01030812]
[1645879455312,0.37862119,38958.0,38953.0,0.00930812]
[1645879455511,0.05314865,38959.0,38953.0,0.00930812]
[1645879455512,0.37862119,38957.0,38953.0,0.00930812]
[1645879456111,0.38062119,38957.0,38953.0,0.00930812]
[1645879456312,0.38062119,38957.0,38948.0,0.001]
[1645879456616,0.37862119,38956.0,38953.0,0.00930812]
[1645879456813,0.14759388,38954.0,38948.0,0.001]
[1645879457012,0.14759388,38954.0,38949.0,0.00930812]
[1645879458013,0.14759388,38954.0,38949.0,0.01030812]
[1645879458267,0.14717634,38954.0,38949.0,0.01030812]
[1645879459370,0.14717634,38954.0,38949.0,0.00930812]
[1645879459970,0.14717634,38954.0,38949.0,0.01030812]
[1645879460669,0.14717634,38954.0,38949.0,0.001]
[1645879460670,0.44686733,38954.0,38949.0,0.001]
[1645879460874,0.14686733,38954.0,38949.0,0.001]
[1645879461070,0.52548852,38954.0,38949.0,0.001]
[1645879461270,0.32493866,38952.0,38947.0,0.00930812]
[1645879462112,0.32493866,38952.0,38947.0,0.01130812]
[1645879462316,0.32493866,38952.0,38947.0,0.002]
[1645879463214,0.32493866,38951.0,38947.0,0.002]
[1645879463415,0.14960796,38948.0,38946.0,0.05]
[1645879463615,0.13069245,38951.0,38949.0,0.29921592]
[1645879464222,0.75563111,38951.0,38949.0,0.29921592]
[1645879464419,0.32493866,38950.0,38949.0,0.29921592]
[1645879464618,0.0514,38950.0,38949.0,0.29921592]
[1645879464818,0.37626629,38950.0,38949.0,0.29921592]
[1645879465219,0.0514,38950.0,38949.0,0.29921592]
[1645879465618,0.37623508,38950.0,38949.0,0.29921592]
[1645879465874,0.43002119,38950.0,38949.0,0.29921592]
[1645879467374,0.11557452,38950.0,38949.0,0.29921592]
[1645879467774,0.43025811,38950.0,38949.0,0.29921592]
[1645879467975,0.43125811,38950.0,38949.0,0.29921592]
[1645879468174,0.43126054,38950.0,38949.0,0.29921592]
[1645879468374,0.0524,38950.0,38949.0,0.29921592]
[1645879468575,0.11656915,38950.0,38949.0,0.29921592]
[1645879468874,0.4312221,38950.0,38949.0,0.29921592]
[1645879469279,0.0514,38950.0,38949.0,0.29921592]
[1645879469719,0.62473703,38950.0,38949.0,0.29921592]
[1645879469917,0.12534743,38950.0,38949.0,0.29921592]
[1645879470123,0.12634743,38950.0,38949.0,0.29921592]
[1645879470317,1.19440573,38950.0,38949.0,0.29921592]
[1645879470516,1.57217773,38950.0,38949.0,0.29921592]
[1645879470716,1.58243773,38950.0,38949.0,0.29921592]
[1645879471016,1.39066573,38950.0,38949.0,0.29921592]
[1645879471416,1.29897385,38950.0,38949.0,0.29921592]
[1645879471616,1.38966573,38950.0,38949.0,0.29921592]
[1645879472015,1.39066573,38950.0,38949.0,0.29921592]
[1645879472215,1.44066573,38950.0,38949.0,0.29921592]
[1645879473016,1.24609931,38950.0,38949.0,0.29921592]
[1645879473269,1.24509931,38950.0,38949.0,0.29921592]
[1645879474069,1.23483931,38950.0,38949.0,0.29921592]
[1645879474270,1.29509931,38950.0,38949.0,0.29921592]
[1645879474870,1.28483931,38950.0,38949.0,0.29921592]
[1645879475470,1.66261131,38950.0,38949.0,0.29921592]
[1645879475670,1.29509931,38950.0,38949.0,0.29921592]
[1645879476571,1.28483931,38950.0,38949.0,0.29921592]
[1645879477215,0.50303931,38950.0,38949.0,0.29921592]
[1645879477419,0.62161713,38950.0,38949.0,0.29921592]
[1645879477715,0.99938913,38950.0,38949.0,0.29921592]
[1645879478115,0.62161713,38950.0,38949.0,0.29921592]
[1645879478314,0.80861713,38950.0,38949.0,0.29921592]
[1645879478515,0.66692525,38950.0,38949.0,0.29921592]
[1645879478719,0.0524,38950.0,38949.0,0.29921592]
[1645879478916,0.3768585,38950.0,38949.0,0.29921592]
[1645879479520,0.3758585,38950.0,38949.0,0.29921592]
[1645879480416,0.0514,38950.0,38949.0,0.29921592]
[1645879482865,0.0514,38950.0,38949.0,0.29660805]
[1645879488121,0.42992525,38950.0,38949.0,0.29660805]
[1645879488364,0.0514,38950.0,38949.0,0.29660805]
[1645879488763,1.1,38949.0,38944.0,0.00027834]
[1645879488964,0.3242539,38948.0,38944.0,0.00027834]
[1645879489164,0.3242539,38947.0,38944.0,0.00027834]
[1645879489362,0.3242539,38947.0,38938.0,0.12856]
[1645879489363,0.3242539,38947.0,38938.0,0.01026]
[1645879489564,0.3242539,38946.0,38944.0,0.00027832]
[1645879489767,0.15894307,38945.0,38944.0,0.00027832]
[1645879490573,0.15894307,38945.0,38939.0,0.001]
[1645879490763,0.15894307,38945.0,38943.0,0.00027832]
[1645879491566,0.5,38944.0,38938.0,0.00663832]
[1645879491765,0.15994307,38945.0,38938.0,0.00663832]
[1645879492019,0.16832724,38939.0,38938.0,0.00385581]
[1645879493420,0.16932724,38939.0,38938.0,0.00385581]
[1645879494823,0.16742584,38939.0,38938.0,0.00385581]
[1645879495423,0.16742584,38939.0,38938.0,0.00485581]
[1645879496270,0.001,38944.0,38938.0,0.00485581]
[1645879496673,0.39328845,38948.0,38938.0,0.00385581]
[1645879496872,0.12286,38948.0,38939.0,0.00029787]
[1645879497071,0.39323568,38948.0,38939.0,0.00029787]
[1645879497472,1.17703568,38948.0,38939.0,0.00029787]
[1645879497676,0.1383144,38947.0,38939.0,0.00029787]
[1645879497873,0.1383144,38947.0,38938.0,0.00385581]
[1645879498073,0.16155134,38939.0,38938.0,0.00385581]
[1645879498873,0.12386,38948.0,38938.0,0.00385581]
[1645879499074,0.0514,38947.0,38938.0,0.00385581]
[1645879499519,0.0514,38947.0,38938.0,0.00485581]
[1645879500121,0.14502288,38940.0,38938.0,0.00485581]
[1645879500721,0.14502288,38940.0,38938.0,0.00385581]
[1645879501621,0.14502288,38940.0,38938.0,0.00485581]
[1645879502826,0.13310333,38940.0,38938.0,0.00385581]
[1645879503463,0.13310333,38940.0,38938.0,0.00485581]
[1645879504464,0.12920333,38940.0,38938.0,0.00485581]
[1645879504664,0.12920333,38940.0,38938.0,0.001]
[1645879504864,0.12920333,38940.0,38937.0,0.00027452]
[1645879505066,0.12920333,38940.0,38932.0,0.1218]
[1645879505265,0.12920333,38940.0,38937.0,0.00027452]
[1645879505472,0.12920333,38940.0,38937.0,0.00127452]
[1645879506264,0.12920333,38940.0,38937.0,0.001]
[1645879506466,0.12920333,38940.0,38937.0,0.00127452]
[1645879506867,0.12920333,38940.0,38937.0,0.00027452]
[1645879507524,0.12920333,38940.0,38937.0,0.001]
[1645879507720,0.12920333,38940.0,38937.0,0.00127452]
[1645879508722,0.12920333,38940.0,38937.0,0.001]
[1645879508922,0.12920333,38940.0,38937.0,0.00027694]
[1645879509223,0.12920333,38940.0,38938.0,0.3260165]
[1645879510324,0.302,38945.0,38938.0,0.3260165]
[1645879510524,0.002,38945.0,38938.0,0.3260165]
[1645879510800,0.002,38945.0,38939.0,0.00930812]
[1645879510986,0.192,38948.0,38939.0,0.00930812]
[1645879511186,1.0066,38949.0,38939.0,0.00930812]
[1645879511187,0.37893867,38947.0,38939.0,0.00930812]
[1645879511387,0.37893867,38947.0,38940.0,0.00027692]
[1645879511588,0.14772854,38945.0,38940.0,0.00027692]
[1645879512386,0.14772854,38945.0,38939.0,0.01036831]
[1645879512588,0.14772854,38945.0,38941.0,0.00027668]
[1645879513489,0.14772854,38945.0,38939.0,0.00936831]
[1645879513689,0.14772854,38945.0,38941.0,0.00027668]
[1645879514290,0.37893867,38948.0,38941.0,0.00027668]
[1645879514525,0.37893867,38948.0,38944.0,0.16300825]
[1645879514724,0.37893867,38947.0,38944.0,0.16300825]
[1645879515022,1.0066,38949.0,38944.0,0.16300825]
[1645879515023,0.37893867,38948.0,38944.0,0.16300825]
[1645879517626,0.38393867,38948.0,38944.0,0.16300825]
[1645879518276,0.38352132,38948.0,38944.0,0.16300825]
[1645879519375,0.37852132,38948.0,38944.0,0.16300825]
[1645879519576,0.38152132,38948.0,38944.0,0.14086848]
[1645879519777,0.38152132,38948.0,38946.0,0.3260165]
[1645879520781,0.37852132,38948.0,38946.0,0.3260165]
[1645879521378,1.13277414,38949.0,38946.0,0.3260165]
[1645879521578,0.003,38948.0,38946.0,0.3260165]
[1645879522821,1.13277414,38949.0,38946.0,0.3260165]
[1645879523524,1.13477414,38949.0,38946.0,0.3260165]
[1645879524821,1.13277414,38949.0,38941.0,0.00025728]
[1645879525021,0.3,38948.0,38941.0,0.00025728]
[1645879525222,0.3,38948.0,38945.0,0.3260165]
[1645879525223,0.37872551,38948.0,38945.0,0.3260165]
[1645879525421,1.51149965,38949.0,38945.0,0.3260165]
[1645879526075,1.51112298,38949.0,38945.0,0.3260165]
[1645879526873,1.51112298,38949.0,38945.0,0.50174468]
[1645879527777,1.51112298,38949.0,38945.0,0.3260165]
[1645879528174,0.50489965,38949.0,38945.0,0.33532462]
[1645879529173,0.50489965,38949.0,38945.0,0.3260165]
[1645879530125,0.50489965,38949.0,38944.0,0.00930812]
[1645879530326,0.12617414,38949.0,38944.0,0.00930812]
[1645879530621,0.12617414,38949.0,38946.0,0.3260165]
[1645879531226,0.001,38948.0,38946.0,0.3260165]
[1645879532622,0.12617414,38949.0,38946.0,0.3260165]
[1645879532823,0.37872551,38951.0,38946.0,0.3260165]
[1645879533476,0.38072551,38951.0,38946.0,0.3260165]
[1645879534076,0.12979939,38950.0,38946.0,0.3260165]
[1645879535479,0.12979939,38950.0,38942.0,0.14719458]
[1645879535679,0.12979939,38950.0,38946.0,0.3260165]
[1645879536581,0.12979939,38950.0,38946.0,0.32562489]
[1645879537036,0.12979939,38950.0,38948.0,6.125e-05]
[1645879537435,0.13179939,38950.0,38948.0,6.125e-05]
[1645879538538,0.13149037,38950.0,38948.0,6.125e-05]
[1645879538740,0.12949037,38950.0,38948.0,6.125e-05]
[1645879539539,0.13149037,38950.0,38948.0,6.125e-05]
[1645879540768,0.12949037,38950.0,38948.0,6.125e-05]
[1645879540973,0.12949037,38950.0,38949.0,0.16261664]
[1645879541168,0.12949037,38950.0,38949.0,0.32562489]
[1645879541573,0.37900213,38952.0,38949.0,0.32562489]
[1645879542469,0.37872551,38952.0,38949.0,0.32562489]
[1645879542771,0.37900214,38952.0,38949.0,0.32562489]
[1645879543671,0.37872551,38952.0,38949.0,0.32562489]
[1645879543872,0.37900214,38952.0,38949.0,0.32562489]
[1645879544071,0.00027663,38952.0,38950.0,0.00930812]
[1645879544821,0.37872551,38958.0,38950.0,0.00930812]
[1645879545028,0.37872551,38959.0,38956.0,0.00930812]
[1645879545221,0.37872551,38960.0,38956.0,0.00930812]
[1645879545422,0.37872551,38959.0,38954.0,0.18436487]
[1645879546322,0.00015076,38958.0,38957.0,0.32562489]
[1645879547323,0.15964622,38961.0,38957.0,0.32562489]
[1645879547523,0.00027687,38959.0,38957.0,0.32662489]
[1645879548373,0.15964622,38961.0,38957.0,0.32662489]
[1645879548573,0.00028791,38960.0,38957.0,0.32662489]
[1645879548775,0.00028791,38960.0,38957.0,0.32562489]
[1645879549573,0.002,38960.0,38957.0,0.32562489]
[1645879549772,0.00228791,38960.0,38957.0,0.32562489]
[1645879550876,0.15322929,38961.0,38957.0,0.32562489]
[1645879551076,0.00028791,38960.0,38957.0,0.32562489]
[1645879551274,0.30028791,38960.0,38957.0,0.32562489]
[1645879551478,0.00028791,38960.0,38952.0,0.00930812]
[1645879551674,0.30028791,38960.0,38958.0,0.32562489]
[1645879551880,0.00028791,38960.0,38958.0,0.32568529]
[1645879552121,0.15522929,38961.0,38958.0,0.32568529]
[1645879552321,0.15550464,38961.0,38958.0,0.32568529]
[1645879552721,0.15350464,38961.0,38958.0,0.32568529]
[1645879553122,0.15322929,38961.0,38958.0,0.32568529]
[1645879553525,0.00027535,38961.0,38958.0,0.32568529]
[1645879553726,0.00027535,38961.0,38960.0,0.00930812]
[1645879554324,0.0011,38963.0,38960.0,0.00930812]
[1645879554528,0.0011,38963.0,38962.0,0.00930812]
[1645879555527,0.0011,38963.0,38962.0,0.01230812]
[1645879556870,0.0011,38963.0,38962.0,0.33754351]
[1645879557473,0.0011,38963.0,38962.0,0.33563664]
[1645879558274,0.0011,38963.0,38962.0,0.32563664]
[1645879558876,0.0011,38963.0,38962.0,0.32363664]
[1645879559521,0.0021,38963.0,38962.0,0.32363664]
[1645879561124,0.0011,38963.0,38962.0,0.32363664]
[1645879561324,0.2713528,38963.0,38962.0,0.16909296]
[1645879561722,0.2723528,38963.0,38962.0,0.16909296]
[1645879561921,0.2723528,38963.0,38962.0,0.16300825]
[1645879562123,0.2723528,38963.0,38962.0,0.1628375]
[1645879562327,0.2723528,38963.0,38962.0,0.00608471]
[1645879562523,0.0021,38963.0,38962.0,0.16892221]
[1645879562823,0.0011,38963.0,38962.0,0.16892221]
[1645879563023,0.26615086,38964.0,38962.0,0.16892221]
[1645879563288,0.0011,38969.0,38965.0,0.02567]
[1645879563482,0.001,38968.0,38965.0,0.08153]
[1645879564084,0.001,38968.0,38965.0,0.23114673]
[1645879564784,0.0011,38969.0,38965.0,0.23114673]
[1645879565383,0.0011,38969.0,38965.0,0.53114673]
[1645879565583,0.0011,38969.0,38965.0,0.53414673]
[1645879566583,0.0011,38969.0,38965.0,0.08453]